fUSD/lending_fUSD_20240121
["ID","MTS","AMOUNT","RATE_DAILY","PERIOD"]
[312410940,1705863062711,-1710.22,0.00041095,31]
[312410941,1705863062720,-500.0,0.00041095,31]
[312410942,1705863062730,-500.0,0.00041095,31]
[312410943,1705863062740,-1261.22,0.00041095,31]
[312410944,1705863062750,-500.0,0.00041095,31]
[312410945,1705863062759,-854.62,0.00041095,31]
[312410946,1705863062769,-695.88,0.00041095,31]
[312410947,1705863062778,-1142.33,0.00041095,31]
[312410948,1705863062787,-500.0,0.00041095,31]
[312410949,1705863062796,-500.0,0.00041095,31]
[312410950,1705863062806,-500.0,0.00041095,31]
[312410951,1705863062814,-852.67,0.00041095,31]
[312410952,1705863062824,-500.0,0.00041095,31]
[312410953,1705863062835,-500.0,0.00041095,31]
[312410954,1705863062845,-500.0,0.00041095,31]
[312410955,1705863062853,-505.00995609,0.00041095,31]
[312410956,1705863062863,-848.47,0.00041095,31]
[312410957,1705863062872,-500.0,0.00041095,31]
[312410958,1705863062881,-500.0,0.00041095,31]
[312410959,1705863062890,-764.06,0.00041095,31]
[312410960,1705863062899,-500.0,0.00041095,31]
[312410961,1705863062908,-500.0,0.00041095,31]
[312410962,1705863062917,-1037.5,0.00041095,31]
[312410963,1705863062927,-1061.05,0.00041095,31]
[312410964,1705863062936,-304.10052869,0.00041095,31]
[312410965,1705863062945,-500.0,0.00041095,31]
[312410966,1705863062954,-500.0,0.00041095,31]
[312410967,1705863062963,-500.0,0.00041095,31]
[312410968,1705863062972,-1032.07,0.00041095,31]
[312410969,1705863062981,-500.0,0.00041095,31]
[312410970,1705863062991,-539.06,0.00041095,20]
[312410971,1705863063000,-1080.19,0.00041095,31]
[312410972,1705863063010,-500.0,0.00041095,31]
[312410973,1705863063019,-500.0,0.00041095,31]
[312410974,1705863063029,-584.66,0.00041095,31]
[312410975,1705863063038,-508.46,0.00041095,31]
[312410976,1705863063048,-810.58,0.00041095,31]
[312410977,1705863063057,-504.22,0.00041095,31]
[312410978,1705863063067,-500.0,0.00041095,31]
[312410979,1705863063076,-517.96,0.00041095,31]
[312410980,1705863063086,-1628.19,0.00041095,31]
[312410981,1705863063095,-500.0,0.00041095,31]
[312410982,1705863063105,-500.0,0.00041095,31]
[312410983,1705863063115,-500.0,0.00041095,31]
[312410984,1705863063125,-841.37,0.00041095,31]
[312410985,1705863063134,-500.0,0.00041095,31]
[312410986,1705863063144,-500.0,0.00041095,31]
[312410987,1705863063153,-1031.39,0.00041095,31]
[312410988,1705863063162,-656.35,0.00041095,31]
[312410989,1705863063172,-1204.6,0.00041095,31]
[312410990,1705863063181,-500.0,0.00041095,31]
[312410991,1705863063190,-500.0,0.00041095,31]
[312410992,1705863063200,-885.84,0.00041095,31]
[312410993,1705863063209,-500.0,0.00041095,31]
[312410994,1705863063218,-500.0,0.00041095,31]
[312410995,1705863063228,-523.77908257,0.00041095,31]
[312410996,1705863063237,-500.0,0.00041095,31]
[312410997,1705863063247,-500.0,0.00041095,31]
[312410998,1705863063256,-500.0,0.00041095,31]
[312410999,1705863063266,-743.47,0.00041095,31]
[312411000,1705863063275,-500.0,0.00041095,31]
[312411001,1705863063284,-500.0,0.00041095,31]
[312411002,1705863063294,-1625.28,0.00041095,31]
[312411003,1705863063303,-1173.34,0.00041095,31]
[312411004,1705863063312,-651.6,0.00041095,31]
[312411005,1705863063322,-500.0,0.00041095,31]
[312411006,1705863063331,-500.0,0.00041095,31]
[312411007,1705863063340,-1176.24,0.00041095,31]
[312411008,1705863063349,-500.0,0.00041095,31]
[312411009,1705863063359,-500.0,0.00041095,31]
[312411010,1705863063368,-653.83,0.00041095,31]
[312411011,1705863063378,-500.0,0.00041095,31]
[312411012,1705863063387,-580.99,0.00041095,31]
[312411013,1705863063397,-500.0,0.00041095,31]
[312411014,1705863063406,-338.14063403,0.00041095,31]
[312411015,1705863063415,-500.0,0.00041095,31]
[312411016,1705863063425,-500.0,0.00041095,31]
[312411017,1705863063434,-500.0,0.00041095,31]
[312411018,1705863063444,-500.0,0.00041095,31]
[312411019,1705863063453,-703.23,0.00041095,31]
[312411020,1705863063462,-500.0,0.00041095,31]
[312411021,1705863063473,-979.3,0.00041095,31]
[312411022,1705863063483,-1290.61,0.00041095,31]
[312411023,1705863063494,-500.0,0.00041095,31]
[312411024,1705863063504,-500.0,0.00041095,31]
[312411025,1705863063514,-1186.31,0.00041095,31]
[312411026,1705863063524,-2291.12,0.00041095,31]
[312411027,1705863063535,-500.0,0.00041095,31]
[312411028,1705863063545,-1150.77,0.00041095,31]
[312411029,1705863063555,-500.0,0.00041095,31]
[312411030,1705863063564,-755.53,0.00041095,31]
[312411031,1705863063574,-600.73,0.00041095,31]
[312411032,1705863063583,-500.0,0.00041095,30]
[312411033,1705863063593,-500.0,0.00041095,31]
[312411034,1705863063603,-570.33,0.00041095,31]
[312411035,1705863063613,-530.31,0.00041095,31]
[312411036,1705863063623,-1218.15,0.00041095,31]
[312411037,1705863063633,-500.0,0.00041095,31]
[312411038,1705863063647,-719.86,0.00041095,31]
[312411039,1705863063657,-500.0,0.00041095,31]
[312411040,1705863063666,-500.0,0.00041095,31]
[312411041,1705863063676,-500.0,0.00041095,31]
[312411042,1705863063686,-500.0,0.00041095,31]
[312411043,1705863063697,-1419.05,0.00041095,31]
[312411044,1705863063706,-989.05,0.00041095,31]
[312411045,1705863063717,-1073.76,0.00041095,31]
[312411046,1705863063727,-500.0,0.00041095,31]
[312411047,1705863063738,-1620.1,0.00041095,31]
[312411048,1705863063747,-500.0,0.00041095,31]
[312411049,1705863063757,-953.57,0.00041095,31]
[312411050,1705863063766,-503.72,0.00041095,31]
[312411051,1705863063775,-686.64,0.00041095,31]
[312411052,1705863063784,-1577.99,0.00041095,31]
[312411053,1705863063793,-741.63,0.00041095,31]
[312411054,1705863063802,-500.0,0.00041095,31]
[312411055,1705863063812,-10000.0,0.00041095,31]
[312411056,1705863063821,-566.94418883,0.00041095,31]
[312411057,1705863063832,-657.61,0.00041095,31]
[312411058,1705863063843,-500.0,0.00041095,31]
[312411059,1705863063853,-262.57232045,0.00041095,31]
[312411060,1705863063862,-500.0,0.00041095,31]
[312411061,1705863063872,-500.0,0.00041095,31]
[312411062,1705863063881,-500.0,0.00041095,31]
[312411063,1705863063892,-504.7,0.00041095,31]
[312411064,1705863063901,-500.0,0.00041095,31]
[312411065,1705863063911,-750.34,0.00041095,31]
[312411066,1705863063922,-500.0,0.00041095,31]
[312411067,1705863063931,-1162.05,0.00041095,31]
[312411068,1705863063940,-500.0,0.00041095,31]
[312411069,1705863063949,-500.0,0.00041095,31]
[312411070,1705863063959,-500.0,0.00041095,31]
[312411071,1705863063968,-500.0,0.00041095,31]
[312411072,1705863063978,-500.0,0.00041095,31]
[312411073,1705863063987,-500.0,0.00041095,31]
[312411074,1705863063996,-500.0,0.00041095,31]
[312411075,1705863064006,-500.0,0.00041095,31]
[312411076,1705863064016,-848.05,0.00041095,31]
[312411077,1705863064026,-194.86639599,0.00041095,31]
[312411078,1705863064035,-1048.21,0.00041095,31]
[312411079,1705863064045,-205.49519459,0.00041095,31]
[312411080,1705863064055,-10000.0,0.00041095,31]
[312411081,1705863064064,-500.0,0.00041095,31]
[312411082,1705863064073,-500.0,0.00041095,31]
[312411083,1705863064082,-645.26,0.00041095,31]
[312411084,1705863064092,-730.17,0.00041095,31]
[312411085,1705863064101,-888.07,0.00041095,31]
[312411086,1705863064111,-1029.09,0.00041095,31]
[312411087,1705863064121,-500.0,0.00041095,2]
[312411088,1705863064130,-561.84,0.00041095,31]
[312411089,1705863064139,-500.0,0.00041095,31]
[312411090,1705863064148,-500.0,0.00041095,31]
[312411091,1705863064158,-500.0,0.00041095,31]
[312411092,1705863064168,-500.0,0.00041095,31]
[312411093,1705863064177,-776.61,0.00041095,31]
[312411094,1705863064188,-500.0,0.00041095,31]
[312411095,1705863064198,-579.77,0.00041095,31]
[312411096,1705863064208,-1041.57,0.00041095,31]
[312411097,1705863064217,-730.27,0.00041095,31]
[312411098,1705863064227,-780.43,0.00041095,31]
[312411099,1705863064236,-745.98,0.00041095,31]
[312411100,1705863064245,-1220.97,0.00041095,31]
[312411101,1705863064255,-938.59,0.00041095,31]
[312411102,1705863064265,-3118.19,0.00041095,31]
[312411103,1705863064274,-1952.53,0.00041095,31]
[312411104,1705863064284,-500.0,0.00041095,31]
[312411105,1705863064294,-1298.67,0.00041095,31]
[312411106,1705863064303,-500.0,0.00041095,31]
[312411107,1705863064312,-935.41,0.00041095,31]
[312411108,1705863064322,-500.0,0.00041095,31]
[312411109,1705863064332,-768.13,0.00041095,31]
[312411110,1705863064341,-500.0,0.00041095,31]
[312411111,1705863064351,-500.0,0.00041095,31]
[312411112,1705863064360,-890.92,0.00041095,31]
[312411113,1705863064371,-1310.81,0.00041095,31]
[312411114,1705863064381,-500.0,0.00041095,8]
[312411115,1705863064391,-563.09,0.00041095,31]
[312411116,1705863064400,-500.0,0.00041095,31]
[312411117,1705863064410,-1000.0,0.00041095,2]
[312411118,1705863064419,-1323.52,0.00041095,31]
[312411119,1705863064429,-679.03,0.00041095,31]
[312411120,1705863064438,-500.0,0.00041095,31]
[312411121,1705863064447,-500.0,0.00041095,31]
[312411122,1705863064456,-500.0,0.00041095,31]
[312411123,1705863064465,-701.31,0.00041095,31]
[312411124,1705863064474,-574.9837384,0.00041095,31]
[312411125,1705863064484,-1411.28,0.00041095,31]
[312411126,1705863064493,-1476.08,0.00041095,31]
[312411127,1705863064502,-952.35,0.00041095,31]
[312411128,1705863064511,-500.0,0.00041095,31]
[312411129,1705863064598,-836.49,0.00041095,31]
[312411130,1705863064608,-1119.54,0.00041095,31]
[312411131,1705863064617,-500.0,0.00041095,31]
[312411132,1705863064626,-500.0,0.00041095,31]
[312411133,1705863064635,-2100.19,0.00041095,31]
[312411134,1705863064647,-1699.55,0.00041095,31]
[312411135,1705863064655,-1129.23,0.00041095,31]
[312411136,1705863064669,-500.0,0.00041095,31]
[312411137,1705863064678,-500.0,0.00041095,31]
[312411138,1705863064687,-978.64,0.00041095,31]
[312411139,1705863064697,-500.0,0.00041095,31]
[312411140,1705863064707,-518.29,0.00041095,7]
[312411141,1705863064717,-500.0,0.00041095,31]
[312411142,1705863064728,-500.0,0.00041095,31]
[312411143,1705863064737,-500.0,0.00041095,31]
[312411144,1705863064747,-1088.8,0.00041095,31]
[312411145,1705863064757,-502.09935567,0.00041095,31]
[312411146,1705863064766,-500.0,0.00041095,31]
[312411147,1705863064775,-1373.63,0.00041095,31]
[312411148,1705863064785,-500.0,0.00041095,31]
[312411149,1705863064794,-500.0,0.00041095,31]
[312411150,1705863064802,-500.0,0.00041095,31]
[312411151,1705863064813,-500.0,0.00041095,31]
[312411152,1705863064822,-500.0,0.00041095,31]
[312411153,1705863064832,-500.0,0.00041095,31]
[312411154,1705863064842,-500.0,0.00041095,31]
[312411155,1705863064851,-500.0,0.00041095,31]
[312411156,1705863064861,-500.0,0.00041095,31]
[312411157,1705863064870,-500.0,0.00041095,31]
[312411158,1705863064879,-509.4,0.00041095,30]
[312411159,1705863064888,-500.0,0.00041095,31]
[312411160,1705863064897,-500.0,0.00041095,31]
[312411161,1705863064907,-500.0,0.00041095,31]
[312411162,1705863064916,-500.0,0.00041095,31]
[312411163,1705863064925,-500.0,0.00041095,31]
[312411164,1705863064934,-1096.84,0.00041095,31]
[312411165,1705863064943,-500.0,0.00041095,31]
[312411166,1705863064953,-500.0,0.00041095,31]
[312411167,1705863064962,-784.37,0.00041095,31]
[312411168,1705863064971,-500.0,0.00041095,31]
[312411169,1705863064981,-500.0,0.00041095,31]
[312411170,1705863064990,-500.0,0.00041095,31]
[312411171,1705863064999,-500.0,0.00041095,31]
[312411172,1705863065009,-500.0,0.00041095,31]
[312411173,1705863065018,-500.0,0.00041095,31]
[312411174,1705863065028,-576.44211924,0.00041095,31]
[312411175,1705863065037,-500.0,0.00041095,31]
[312411176,1705863065050,-500.0,0.00041095,31]
[312411177,1705863065060,-786.57,0.00041095,31]
[312411178,1705863065070,-611.25,0.00041095,31]
[312411179,1705863065080,-500.0,0.00041095,31]
[312411180,1705863065090,-436.52602812,0.00041095,31]
[312411181,1705863065099,-1153.04,0.00041095,31]
[312411182,1705863065109,-500.0,0.00041095,31]
[312411183,1705863065119,-500.0,0.00041095,31]
[312411184,1705863065128,-440.9536202,0.00041095,31]
[312411185,1705863065138,-1019.37,0.00041095,31]
[312411186,1705863065147,-500.0,0.00041095,7]
[312411187,1705863065156,-1231.51,0.00041095,31]
[312411188,1705863065166,-500.0,0.00041095,31]
[312411189,1705863065176,-500.0,0.00041095,31]
[312411190,1705863065187,-500.0,0.00041095,31]
[312411191,1705863065197,-500.0,0.00041095,31]
[312411192,1705863065207,-1374.73,0.00041095,31]
[312411193,1705863065217,-500.0,0.00041095,31]
[312411194,1705863065228,-543.23591331,0.00041095,31]
[312411195,1705863065237,-500.0,0.00041095,31]
[312411196,1705863065247,-1208.34,0.00041095,31]
[312411197,1705863065258,-1371.39,0.00041095,31]
[312411198,1705863065267,-820.18,0.00041095,31]
[312411199,1705863065277,-1442.91,0.00041095,31]
[312411200,1705863065287,-500.0,0.00041095,31]
[312411201,1705863065297,-706.05,0.00041095,31]
[312411202,1705863065307,-500.0,0.00041095,31]
[312411203,1705863065317,-500.0,0.00041095,31]
[312411204,1705863065327,-669.79,0.00041095,31]
[312411205,1705863065336,-875.23,0.00041095,31]
[312411206,1705863065346,-500.0,0.00041095,31]
[312411207,1705863065356,-500.0,0.00041095,31]
[312411208,1705863065365,-2613.26,0.00041095,7]
[312411209,1705863065374,-2071.44,0.00041095,31]
[312411210,1705863065384,-901.63,0.00041095,31]
[312411211,1705863065393,-524.23813189,0.00041095,31]
[312411212,1705863065403,-500.0,0.00041095,31]
[312411213,1705863065413,-500.0,0.00041095,31]
[312411214,1705863065422,-500.0,0.00041095,31]
[312411215,1705863065431,-2191.06,0.00041095,7]
[312411216,1705863065441,-500.0,0.00041095,31]
[312411217,1705863065451,-500.0,0.00041095,31]
[312411218,1705863065461,-500.0,0.00041095,31]
[312411219,1705863065471,-500.0,0.00041095,31]
[312411220,1705863065481,-500.0,0.00041095,31]
[312411221,1705863065491,-500.0,0.00041095,31]
[312411222,1705863065500,-500.0,0.00041095,31]
[312411223,1705863065510,-641.54,0.00041095,31]
[312411224,1705863065520,-500.0,0.00041095,31]
[312411225,1705863065530,-1346.51,0.00041095,31]
[312411226,1705863065540,-1341.6,0.00041095,2]
[312411227,1705863065550,-299.10296953,0.00041095,31]
[312411228,1705863065559,-500.0,0.00041095,31]
[312411229,1705863065569,-500.0,0.00041095,31]
[312411230,1705863065578,-500.0,0.00041095,31]
[312411231,1705863065587,-500.0,0.00041095,31]
[312411232,1705863065596,-500.0,0.00041095,31]
[312411233,1705863065606,-500.0,0.00041095,31]
[312411234,1705863065617,-504.02,0.00041095,31]
[312411235,1705863065626,-504.43,0.00041095,31]
[312411236,1705863065636,-500.0,0.00041095,31]
[312411237,1705863065648,-588.19,0.00041095,31]
[312411238,1705863065658,-787.71,0.00041095,31]
[312411239,1705863065667,-500.0,0.00041095,31]
[312411240,1705863065677,-500.0,0.00041095,31]
[312411241,1705863065687,-659.24,0.00041095,31]
[312411242,1705863065696,-500.0,0.00041095,31]
[312411243,1705863065705,-500.0,0.00041095,31]
[312411244,1705863065715,-500.0,0.00041095,31]
[312411245,1705863065724,-646.69,0.00041095,31]
[312411246,1705863065734,-653.73,0.00041095,31]
[312411247,1705863065744,-500.0,0.00041095,31]
[312411248,1705863065753,-511.30327516,0.00041095,31]
[312411249,1705863065762,-1246.47,0.00041095,31]
[312411250,1705863065772,-970.62,0.00041095,31]
[312411251,1705863065781,-1282.6,0.00041095,31]
[312411252,1705863065790,-500.0,0.00041095,31]
[312411253,1705863065800,-500.0,0.00041095,31]
[312411254,1705863065809,-1439.07,0.00041095,31]
[312411255,1705863065818,-500.0,0.00041095,31]
[312411256,1705863065827,-519.23153212,0.00041095,31]
[312411257,1705863065836,-500.0,0.00041095,31]
[312411258,1705863065845,-884.92,0.00041095,31]
[312411259,1705863065854,-500.0,0.00041095,31]
[312411260,1705863065863,-500.0,0.00041095,31]
[312411261,1705863065873,-500.0,0.00041095,31]
[312411262,1705863065883,-500.0,0.00041095,31]
[312411263,1705863065892,-601.71,0.00041095,31]
[312411264,1705863065902,-500.0,0.00041095,31]
[312411265,1705863065911,-526.60066045,0.00041095,31]
[312411266,1705863065921,-631.29,0.00041095,31]
[312411267,1705863065930,-500.0,0.00041095,31]
[312411268,1705863065939,-658.35,0.00041095,31]
[312411269,1705863065949,-1363.05,0.00041095,31]
[312411270,1705863065958,-500.0,0.00041095,31]
[312411271,1705863065967,-500.0,0.00041095,31]
[312411272,1705863065976,-500.0,0.00041095,31]
[312411273,1705863065986,-1376.75,0.00041095,31]
[312411274,1705863065995,-734.65,0.00041095,31]
[312411275,1705863066005,-629.5,0.00041095,31]
[312411276,1705863066014,-878.27,0.00041095,31]
[312411277,1705863066023,-1485.3,0.00041095,31]
[312411278,1705863066033,-500.0,0.00041095,31]
[312411279,1705863066043,-500.0,0.00041095,31]
[312411280,1705863066052,-500.0,0.00041095,31]
[312411281,1705863066062,-500.0,0.00041095,31]
[312411282,1705863066071,-500.0,0.00041095,31]
[312411283,1705863066081,-500.0,0.00041095,31]
[312411284,1705863066090,-269.58,0.00041095,31]
[312411285,1705863066100,-795.53,0.00041095,31]
[312411286,1705863066108,-1460.98,0.00041095,31]
[312411287,1705863066117,-500.0,0.00041095,31]
[312411288,1705863066127,-500.0,0.00041095,31]
[312411289,1705863066136,-500.0,0.00041095,31]
[312411290,1705863066145,-582.97,0.00041095,31]
[312411291,1705863066154,-500.0,0.00041095,31]
[312411292,1705863066163,-750.82,0.00041095,31]
[312411293,1705863066173,-1823.96,0.00041095,31]
[312411294,1705863066182,-500.0,0.00041095,31]
[312411295,1705863066191,-500.0,0.00041095,31]
[312411296,1705863066200,-500.0,0.00041095,31]
[312411297,1705863066210,-1800.49,0.00041095,31]
[312411298,1705863066220,-500.0,0.00041095,31]
[312411299,1705863066229,-500.0,0.00041095,31]
[312411300,1705863066239,-752.24,0.00041095,31]
[312411301,1705863066248,-500.0,0.00041095,31]
[312411302,1705863066257,-500.0,0.00041095,31]
[312411303,1705863066266,-500.0,0.00041095,31]
[312411304,1705863066276,-500.0,0.00041095,31]
[312411305,1705863066285,-500.0,0.00041095,31]
[312411306,1705863066294,-1200.05,0.00041095,31]
[312411307,1705863066303,-500.0,0.00041095,31]
[312411308,1705863066312,-500.0,0.00041095,31]
[312411309,1705863066321,-500.0,0.00041095,31]
[312411310,1705863066330,-1143.39,0.00041095,31]
[312411311,1705863066340,-798.25,0.00041095,31]
[312411312,1705863066349,-500.0,0.00041095,31]
[312411313,1705863066357,-795.6,0.00041095,31]
[312411314,1705863066366,-500.0,0.00041095,31]
[312411315,1705863066376,-500.0,0.00041095,31]
[312411316,1705863066385,-522.67250421,0.00041095,31]
[312411317,1705863066395,-500.0,0.00041095,31]
[312411318,1705863066404,-500.0,0.00041095,31]
[312411319,1705863066413,-500.0,0.00041095,31]
[312411320,1705863066423,-834.82,0.00041095,31]
[312411321,1705863066432,-500.0,0.00041095,31]
[312411322,1705863066442,-687.25,0.00041095,31]
[312411323,1705863066451,-500.0,0.00041095,31]
[312411324,1705863066461,-500.0,0.00041095,31]
[312411325,1705863066471,-625.95,0.00041095,31]
[312411326,1705863066480,-500.0,0.00041095,31]
[312411327,1705863066491,-500.0,0.00041095,31]
[312411328,1705863066500,-5545.7,0.00041095,31]
[312411329,1705863066510,-654.82,0.00041095,31]
[312411330,1705863066520,-500.0,0.00041095,31]
[312411331,1705863066530,-500.0,0.00041095,31]
[312411332,1705863066541,-500.0,0.00041095,31]
[312411333,1705863066552,-627.52,0.00041095,31]
[312411334,1705863066562,-500.0,0.00041095,31]
[312411335,1705863066572,-500.0,0.00041095,31]
[312411336,1705863066583,-500.0,0.00041095,31]
[312411337,1705863066593,-730.39,0.00041095,31]
[312411338,1705863066604,-500.0,0.00041095,31]
[312411339,1705863066613,-500.0,0.00041095,31]
[312411340,1705863066623,-3338.13,0.00041095,31]
[312411341,1705863066633,-500.0,0.00041095,31]
[312411342,1705863066646,-500.0,0.00041095,31]
[312411343,1705863066656,-500.0,0.00041095,31]
[312411344,1705863066666,-500.0,0.00041095,31]
[312411345,1705863066676,-545.27,0.00041095,31]
[312411346,1705863066687,-764.44,0.00041095,31]
[312411347,1705863066697,-500.0,0.00041095,31]
[312411348,1705863066706,-1998.81,0.00041095,31]
[312411349,1705863066716,-500.0,0.00041095,31]
[312411350,1705863066726,-1296.18,0.00041095,31]
[312411351,1705863066736,-1596.09,0.00041095,31]
[312411352,1705863066746,-17260.95,0.00041095,31]
[312411353,1705863066756,-532.21772216,0.00041095,7]
[312411354,1705863066766,-500.0,0.00041095,31]
[312411355,1705863066776,-708.09,0.00041095,31]
[312411356,1705863066786,-500.0,0.00041095,31]
[312411357,1705863066795,-898.19,0.00041095,31]
[312411358,1705863066805,-500.0,0.00041095,31]
[312411359,1705863066815,-570.27,0.00041095,31]
[312411360,1705863066824,-5449.29,0.00041095,31]
[312411361,1705863066834,-2144.35,0.00041095,31]
[312411362,1705863066844,-500.0,0.00041095,31]
[312411363,1705863066855,-500.0,0.00041095,31]
[312411364,1705863066866,-602.09,0.00041095,31]
[312411365,1705863066876,-500.0,0.00041095,31]
[312411366,1705863066887,-501.79,0.00041095,31]
[312411367,1705863066897,-500.0,0.00041095,31]
[312411368,1705863066907,-500.0,0.00041095,31]
[312411369,1705863066920,-754.18,0.00041095,31]
[312411370,1705863066931,-2566.96,0.00041095,31]
[312411371,1705863066941,-614.78910145,0.00041095,31]
[312411372,1705863066962,-1568.48,0.00041095,31]
[312411373,1705863066973,-1393.43,0.00041095,31]
[312411374,1705863067001,-500.0,0.00041095,31]
[312411375,1705863067012,-14027.91,0.00041095,31]
[312411376,1705863067028,-500.0,0.00041095,31]
[312411377,1705863067038,-500.0,0.00041095,31]
[312411378,1705863067056,-500.0,0.00041095,31]
[312411379,1705863067066,-500.0,0.00041095,31]
[312411380,1705863067075,-424.89925989,0.00041095,31]
[312411381,1705863067092,-927.78,0.00041095,31]
[312411382,1705863067103,-500.0,0.00041095,31]
[312411383,1705863067131,-500.0,0.00041095,31]
[312411384,1705863067141,-500.0,0.00041095,31]
[312411385,1705863067154,-500.0,0.00041095,31]
[312411386,1705863067178,-500.0,0.00041095,31]
[312411387,1705863067188,-1492.21,0.00041095,31]
[312411388,1705863067198,-872.52,0.00041095,31]
[312411389,1705863067209,-20533.6,0.00041095,31]
[312411390,1705863067219,-866.78,0.00041095,31]
[312411391,1705863067231,-2714.75,0.00041095,31]
[312411392,1705863067243,-1000.0,0.00041095,31]
[312411393,1705863067253,-500.0,0.00041095,31]
[312411394,1705863067263,-2856.96,0.00041095,31]
[312411395,1705863067273,-500.0,0.00041095,31]
[312411396,1705863067283,-500.0,0.00041095,31]
[312411397,1705863067293,-500.0,0.00041095,31]
[312411398,1705863067303,-500.0,0.00041095,31]
[312411399,1705863067313,-500.0,0.00041095,31]
[312411400,1705863067322,-500.0,0.00041095,31]
[312411401,1705863067332,-500.0,0.00041095,31]
[312411402,1705863067341,-500.0,0.00041095,31]
[312411403,1705863067360,-618.09,0.00041095,31]
[312411404,1705863067369,-585.59,0.00041095,31]
[312411405,1705863067378,-838.89,0.00041095,31]
[312411406,1705863067387,-38187.45,0.00041095,31]
[312411407,1705863067396,-500.0,0.00041095,31]
[312411408,1705863067406,-517.45677216,0.00041095,2]
[312411409,1705863067415,-1815.38,0.00041095,31]
[312411410,1705863067427,-500.0,0.00041095,31]
[312411411,1705863067436,-3481.81,0.00041095,31]
[312411412,1705863067445,-500.0,0.00041095,31]
[312411413,1705863067455,-506.98,0.00041095,31]
[312411414,1705863067464,-500.0,0.00041095,31]
[312411415,1705863067474,-5257.49,0.00041095,31]
[312411416,1705863067483,-500.0,0.00041095,31]
[312411417,1705863067493,-500.0,0.00041095,31]
[312411418,1705863067502,-500.0,0.00041095,31]
[312411419,1705863067521,-500.0,0.00041095,31]
[312411420,1705863067530,-500.0,0.00041095,10]
[312411421,1705863067549,-522.8,0.00041095,31]
[312411422,1705863067567,-2462.22,0.00041095,31]
[312411423,1705863067577,-500.0,0.00041095,31]
[312411424,1705863067588,-500.0,0.00041095,31]
[312411425,1705863067597,-2726.66,0.00041095,31]
[312411426,1705863067606,-500.0,0.00041095,31]
[312411427,1705863067616,-500.0,0.00041095,31]
[312411428,1705863067625,-515.05752166,0.00041095,31]
[312411429,1705863067634,-500.0,0.00041095,31]
[312411430,1705863067645,-500.0,0.00041095,31]
[312411431,1705863067654,-500.0,0.00041095,31]
[312411432,1705863067663,-9964.37,0.00041095,31]
[312411433,1705863067675,-4646.58,0.00041095,31]
[312411434,1705863067684,-1256.11,0.00041095,31]
[312411435,1705863067694,-569.32,0.00041095,31]
[312411436,1705863067703,-563.04,0.00041095,31]
[312411437,1705863067714,-1625.17,0.00041095,31]
[312411438,1705863067723,-1597.74,0.00041095,31]
[312411439,1705863067733,-500.0,0.00041095,31]